fUST/lending_fUST_20250210
["ID","MTS","AMOUNT","RATE_DAILY","PERIOD"]
[352569986,1739173836586,-500.0,0.00011095,2]
[352569987,1739173836595,-500.0,0.00011095,2]
[352569988,1739173836603,-500.0,0.00011095,2]
[352569989,1739173836613,-500.0,0.00011095,2]
[352569990,1739173836622,-500.0,0.00011095,2]
[352569991,1739173836631,-500.0,0.00011095,2]
[352569992,1739173836641,-500.0,0.00011095,2]
[352569993,1739173836650,-500.0,0.00011095,2]
[352569994,1739173836660,-500.0,0.00011095,2]
[352569995,1739173836669,-500.0,0.00011095,2]
[352569996,1739173836678,-500.0,0.00011095,2]
[352569997,1739173836688,-500.0,0.00011095,2]
[352569998,1739173836697,-500.0,0.00011095,2]
[352569999,1739173836706,-500.0,0.00011095,2]
[352570000,1739173836715,-500.0,0.00011095,2]
[352570001,1739173836725,-500.0,0.00011095,2]
[352570002,1739173836734,-500.0,0.00011095,2]
[352570003,1739173836744,-500.0,0.00011095,2]
[352570004,1739173836754,-1033.99,0.00011095,2]
[352570005,1739173836763,-500.0,0.00011095,2]
[352570006,1739173836775,-500.0,0.00011095,2]
[352570007,1739173836784,-2327.36,0.00011095,2]
[352570008,1739173836793,-500.0,0.00011095,2]
[352570009,1739173836803,-500.0,0.00011095,2]
[352570010,1739173836813,-2167.03,0.00011095,2]
[352570011,1739173836822,-500.0,0.00011095,2]
[352570012,1739173836832,-500.0,0.00011095,2]
[352570013,1739173836841,-1786.78,0.00011095,2]
[352570014,1739173836850,-500.0,0.00011095,2]
[352570015,1739173836859,-500.0,0.00011095,2]
[352570016,1739173836869,-500.0,0.00011095,2]
[352570017,1739173836878,-500.0,0.00011095,2]
[352570018,1739173836888,-1046.24,0.00011095,2]
[352570019,1739173836897,-500.0,0.00011095,2]
[352570020,1739173836906,-500.0,0.00011095,2]
[352570021,1739173836915,-500.0,0.00011095,2]
[352570022,1739173836924,-500.0,0.00011095,2]
[352570023,1739173836933,-500.0,0.00011095,2]
[352570024,1739173836942,-500.0,0.00011095,2]
[352570025,1739173836954,-500.0,0.00011095,2]
[352570026,1739173836967,-500.0,0.00011095,2]
[352570027,1739173836981,-737.05,0.00011095,2]
[352570028,1739173836994,-500.0,0.00011095,2]
[352570029,1739173837005,-699.77,0.00011095,2]
[352570030,1739173837015,-500.0,0.00011095,2]
[352570031,1739173837028,-500.0,0.00011095,2]
[352570032,1739173837041,-500.0,0.00011095,2]
[352570033,1739173837053,-500.0,0.00011095,2]
[352570034,1739173837066,-889.57,0.00011095,2]
[352570035,1739173837078,-500.0,0.00011095,2]
[352570036,1739173837090,-500.0,0.00011095,2]
[352570037,1739173837103,-500.0,0.00011095,2]
[352570038,1739173837116,-500.0,0.00011095,2]
[352570039,1739173837128,-24674.75,0.00011095,2]
[352570040,1739173837140,-500.0,0.00011095,2]
[352570041,1739173837151,-1381.02,0.00011095,2]
[352570042,1739173837163,-500.0,0.00011095,2]
[352570043,1739173837176,-500.0,0.00011095,2]
[352570044,1739173837188,-500.0,0.00011095,2]
[352570045,1739173837200,-3775.41,0.00011095,2]
[352570046,1739173837211,-1106.43,0.00011095,2]
[352570047,1739173837221,-615.18,0.00011095,2]
[352570048,1739173837233,-500.0,0.00011095,2]
[352570049,1739173837244,-500.0,0.00011095,2]
[352570050,1739173837256,-500.0,0.00011095,2]
[352570051,1739173837268,-1821.24,0.00011095,2]
[352570052,1739173837281,-500.0,0.00011095,2]
[352570053,1739173837294,-586.55,0.00011095,2]
[352570054,1739173837308,-612.13,0.00011095,2]
[352570055,1739173837319,-500.0,0.00011095,2]
[352570056,1739173837333,-500.0,0.00011095,2]
[352570057,1739173837343,-5292.78,0.00011095,2]
[352570058,1739173837353,-500.0,0.00011095,2]
[352570059,1739173837363,-500.0,0.00011095,2]
[352570060,1739173837374,-500.0,0.00011095,2]
[352570061,1739173837387,-500.0,0.00011095,2]
[352570062,1739173837410,-1628.02,0.00011095,2]
[352570063,1739173837422,-500.0,0.00011095,2]
[352570064,1739173837435,-500.0,0.00011095,2]
[352570065,1739173837447,-517.92,0.00011095,2]
[352570066,1739173837458,-592.56,0.00011095,2]
[352570067,1739173837470,-500.0,0.00011095,2]
[352570068,1739173837486,-500.0,0.00011095,2]
[352570069,1739173837497,-837.58,0.00011095,2]
[352570070,1739173837508,-762.41,0.00011095,2]
[352570071,1739173837520,-500.0,0.00011095,2]
[352570072,1739173837532,-1904.32,0.00011095,2]
[352570073,1739173837543,-521.83905828,0.00011095,2]
[352570075,1739173837555,-849.42,0.00011095,2]
[352570077,1739173837568,-500.0,0.00011095,2]
[352570081,1739173837580,-504.19583548,0.00011095,2]
[352570083,1739173837591,-500.0,0.00011095,2]
[352570085,1739173837603,-503.9853436,0.00011095,2]
[352570087,1739173837614,-925.35,0.00011095,2]
[352570089,1739173837626,-878.8,0.00011095,2]
[352570091,1739173837638,-1541.79,0.00011095,2]
[352570094,1739173837650,-500.0,0.00011095,2]
[352570096,1739173837661,-500.0,0.00011095,2]
[352570098,1739173837672,-500.0,0.00011095,2]
[352570100,1739173837685,-700.89,0.00011095,2]
[352570102,1739173837696,-500.0,0.00011095,2]
[352570105,1739173837708,-500.0,0.00011095,2]
[352570107,1739173837719,-500.0,0.00011095,2]
[352570109,1739173837731,-500.0,0.00011095,2]
[352570111,1739173837742,-500.0,0.00011095,2]
[352570113,1739173837753,-500.0,0.00011095,2]
[352570116,1739173837765,-587.98,0.00011095,2]
[352570118,1739173837776,-500.0,0.00011095,2]
[352570120,1739173837788,-500.0,0.00011095,2]
[352570122,1739173837800,-500.0,0.00011095,2]
[352570124,1739173837814,-500.0,0.00011095,2]
[352570127,1739173837826,-1948.67,0.00011095,2]
[352570129,1739173837838,-500.0,0.00011095,2]
[352570131,1739173837850,-886.37,0.00011095,2]
[352570133,1739173837862,-500.0,0.00011095,2]
[352570136,1739173837876,-500.0,0.00011095,2]
[352570138,1739173837887,-500.0,0.00011095,2]
[352570140,1739173837899,-500.0,0.00011095,2]
[352570142,1739173837911,-500.0,0.00011095,2]
[352570144,1739173837924,-500.0,0.00011095,2]
[352570146,1739173837935,-500.0,0.00011095,2]
[352570149,1739173837947,-11555.29,0.00011095,2]
[352570151,1739173837959,-3567.19,0.00011095,2]
[352570153,1739173837971,-1981.93,0.00011095,2]
[352570155,1739173837983,-1014.01,0.00011095,2]
[352570157,1739173837995,-500.0,0.00011095,2]
[352570160,1739173838006,-500.0,0.00011095,2]
[352570162,1739173838018,-500.0,0.00011095,2]
[352570164,1739173838029,-225.45595771,0.00011231,2]
[352570166,1739173838041,-500.0,0.00011231,2]
[352570168,1739173838053,-500.0,0.00011231,2]
[352570171,1739173838066,-500.0,0.00011231,2]
[352570173,1739173838078,-154.59759814,0.00011231,2]
[352570175,1739173838090,-500.0,0.00011231,2]
[352570177,1739173838101,-500.0,0.00011231,2]
[352570179,1739173838112,-500.0,0.00011232,2]
[352570181,1739173838124,-500.0,0.00011232,2]
[352570184,1739173838140,-500.0,0.00011232,2]
[352570186,1739173838152,-500.0,0.00011232,2]
[352570188,1739173838167,-469.48687463,0.00011232,2]
[352570190,1739173838180,-500.0,0.00011232,2]
[352570192,1739173838191,-500.0,0.00011232,2]
[352570195,1739173838204,-500.0,0.00011232,2]
[352570197,1739173838218,-500.0,0.00011232,2]
[352570199,1739173838228,-500.0,0.00011232,2]
[352570201,1739173838238,-500.0,0.00011232,2]
[352570217,1739173838388,-500.0,0.00011232,2]
[352570219,1739173838411,-500.0,0.00011232,2]
[352570221,1739173838423,-500.0,0.00011232,2]
[352570223,1739173838433,-484.20893084,0.00011232,2]
[352570225,1739173838443,-500.0,0.00011232,2]
[352570226,1739173838452,-500.0,0.00011232,2]
[352570228,1739173838462,-409.24465584,0.00011232,2]
[352570230,1739173838472,-500.0,0.00011232,2]
[352570232,1739173838482,-500.0,0.00011232,2]
[352570233,1739173838492,-276.4194998,0.00011232,2]
[352570235,1739173838502,-500.0,0.00011232,2]
[352570236,1739173838511,-602.78200167,0.00011232,2]
[352570237,1739173838520,-500.0,0.00011232,2]
[352570238,1739173838532,-500.0,0.00011232,2]
[352570239,1739173838542,-500.0,0.00011232,2]
[352570240,1739173838551,-500.0,0.00011232,2]
[352570241,1739173838565,-500.0,0.00011232,2]
[352570242,1739173838574,-566.83,0.00011232,2]
[352570243,1739173838583,-500.0,0.00011232,2]
[352570244,1739173838593,-500.0,0.00011232,2]
[352570245,1739173838603,-500.0,0.00011232,2]
[352570246,1739173838613,-500.0,0.00011232,2]
[352570247,1739173838623,-598.1,0.00011232,2]
[352570248,1739173838632,-500.0,0.00011232,2]
[352570249,1739173838642,-500.0,0.00011232,2]
[352570250,1739173838651,-500.0,0.00011232,2]
[352570251,1739173838660,-500.0,0.00011232,2]
[352570252,1739173838670,-500.0,0.00011232,2]
[352570253,1739173838679,-500.0,0.00011232,2]
[352570254,1739173838690,-500.0,0.00011232,2]
[352570255,1739173838700,-636.99,0.00011232,2]
[352570256,1739173838709,-753.01,0.00011232,2]
[352570257,1739173838719,-500.0,0.00011232,2]
[352570258,1739173838728,-500.0,0.00011232,2]
[352570259,1739173838738,-500.0,0.00011232,2]
[352570260,1739173838747,-500.0,0.00011232,2]
[352570261,1739173838757,-500.0,0.00011232,2]
[352570262,1739173838766,-500.0,0.00011232,2]
[352570263,1739173838776,-500.0,0.00011232,2]
[352570264,1739173838785,-500.0,0.00011232,2]
[352570265,1739173838795,-500.0,0.00011232,2]
[352570266,1739173838804,-500.0,0.00011232,2]
[352570267,1739173838815,-500.0,0.00011232,2]
[352570268,1739173838825,-500.0,0.00011232,2]
[352570269,1739173838835,-500.0,0.00011232,2]
[352570270,1739173838845,-500.0,0.00011232,2]
[352570271,1739173838854,-582.61,0.00011232,2]
[352570272,1739173838864,-500.0,0.00011232,2]
[352570273,1739173838873,-500.0,0.00011232,2]
[352570274,1739173838883,-500.0,0.00011232,2]
[352570275,1739173838893,-500.0,0.00011232,2]
[352570276,1739173838902,-500.0,0.00011232,2]
[352570277,1739173838912,-500.0,0.00011232,2]
[352570278,1739173838921,-249.58592137,0.00011232,2]
[352570279,1739173838931,-500.0,0.00011232,2]
[352570280,1739173838941,-641.83464307,0.00011232,2]
[352570281,1739173838950,-500.0,0.00011232,2]
[352570282,1739173838959,-500.0,0.00011232,2]
[352570283,1739173838969,-1011.4,0.00011232,2]
[352570284,1739173838978,-500.0,0.00011232,2]
[352570285,1739173838987,-500.0,0.00011232,2]
[352570286,1739173838996,-500.0,0.00011232,2]
[352570287,1739173839006,-500.0,0.00011232,2]
[352570288,1739173839015,-500.0,0.00011232,2]
[352570289,1739173839025,-500.0,0.00011232,2]
[352570290,1739173839035,-500.0,0.00011232,2]
[352570291,1739173839043,-500.0,0.00011232,2]
[352570292,1739173839054,-500.0,0.00011232,2]
[352570293,1739173839066,-500.0,0.00011232,2]
[352570294,1739173839076,-500.0,0.00011232,2]
[352570295,1739173839086,-500.0,0.00011232,2]
[352570296,1739173839095,-500.0,0.00011232,2]
[352570297,1739173839105,-500.0,0.00011232,2]
[352570298,1739173839114,-500.0,0.00011232,2]
[352570299,1739173839124,-500.0,0.00011232,2]
[352570300,1739173839134,-500.0,0.00011232,2]
[352570301,1739173839143,-500.0,0.00011232,2]
[352570302,1739173839152,-1033.99,0.00011232,2]
[352570303,1739173839162,-500.0,0.00011232,2]
[352570304,1739173839172,-2327.36,0.00011232,2]
[352570305,1739173839181,-500.0,0.00011232,2]
[352570306,1739173839191,-2167.03,0.00011232,2]
[352570307,1739173839200,-500.0,0.00011232,2]
[352570308,1739173839210,-1786.78,0.00011232,2]
[352570309,1739173839220,-500.0,0.00011232,2]
[352570310,1739173839229,-500.0,0.00011232,2]
[352570311,1739173839239,-608.79672195,0.00011232,2]
[352570312,1739173839249,-1046.24,0.00011232,2]
[352570313,1739173839259,-500.0,0.00011232,2]
[352570314,1739173839268,-500.0,0.00011232,2]
[352570315,1739173839277,-500.0,0.00011232,2]
[352570316,1739173839286,-500.0,0.00011232,2]
[352570317,1739173839296,-500.0,0.00011232,2]
[352570318,1739173839305,-737.05,0.00011232,2]
[352570319,1739173839318,-500.0,0.00011232,2]
[352570320,1739173839327,-699.77,0.00011232,2]
[352570321,1739173839336,-500.0,0.00011232,2]
[352570322,1739173839345,-531.99,0.00011232,2]
[352570323,1739173839354,-500.0,0.00011232,2]
[352570324,1739173839363,-889.57,0.00011232,2]
[352570325,1739173839373,-500.0,0.00011232,2]
[352570326,1739173839382,-500.0,0.00011232,2]
[352570327,1739173839391,-500.0,0.00011232,2]
[352570328,1739173839406,-500.0,0.00011232,2]
[352570329,1739173839415,-3185.36066246,0.00011232,2]
[352570333,1739173839816,-500.0,0.00010958,2]
[352570334,1739173839826,-21489.38933754,0.00011232,2]
[352570335,1739173839835,-1381.02,0.00011232,2]
[352570336,1739173839845,-402.57409738,0.00011232,2]
[352570337,1739173839855,-500.0,0.00011232,2]
[352570338,1739173839864,-1491.80643237,0.00011232,2]
[352570339,1739173839885,-2283.60356763,0.00011232,2]
[352570340,1739173839894,-1106.43,0.00011232,2]
[352570341,1739173839904,-615.18,0.00011232,2]
[352570342,1739173839913,-500.0,0.00011232,2]
[352570343,1739173839922,-500.0,0.00011232,2]
[352570345,1739173839932,-1821.24,0.00011232,2]
[352570346,1739173839941,-586.55,0.00011232,2]
[352570348,1739173839951,-612.13,0.00011232,2]
[352570349,1739173839960,-500.0,0.00011232,2]
[352570350,1739173839969,-5292.78,0.00011232,2]
[352570351,1739173839979,-500.0,0.00011232,2]
[352570352,1739173839988,-500.0,0.00011232,2]
[352570353,1739173839997,-500.0,0.00011232,2]
[352570354,1739173840007,-500.0,0.00011232,2]
[352570356,1739173840016,-1628.02,0.00011232,2]
[352570357,1739173840025,-500.0,0.00011232,2]
[352570358,1739173840034,-500.0,0.00011232,2]
[352570359,1739173840044,-500.0,0.00011232,2]
[352570360,1739173840053,-500.0,0.00011232,2]
[352570361,1739173840063,-837.58,0.00011232,2]
[352570362,1739173840071,-762.41,0.00011232,2]
[352570363,1739173840081,-271.57866903,0.00011232,2]
[352570364,1739173840090,-1904.32,0.00011232,2]
[352570365,1739173840099,-849.42,0.00011232,2]
[352570366,1739173840108,-394.6836578,0.00011232,2]
[352570367,1739173840117,-500.0,0.00011232,2]
[352570368,1739173840127,-925.35,0.00011232,2]
[352570369,1739173840136,-878.8,0.00011232,2]
[352570370,1739173840145,-1541.79,0.00011232,2]
[352570371,1739173840154,-152.88966977,0.00011232,2]
[352570372,1739173840163,-500.0,0.00011232,2]
[352570373,1739173840172,-500.0,0.00011232,2]
[352570374,1739173840182,-700.89,0.00011232,2]
[352570375,1739173840191,-500.0,0.00011232,2]
[352570376,1739173840201,-500.0,0.00011232,2]
[352570377,1739173840210,-500.0,0.00011232,2]
[352570378,1739173840220,-587.98,0.00011232,2]
[352570379,1739173840229,-500.0,0.00011232,2]
[352570380,1739173840238,-500.0,0.00011232,2]
[352570381,1739173840247,-500.0,0.00011232,2]
[352570382,1739173840257,-503.32907393,0.00011232,2]
[352570383,1739173840266,-1948.67,0.00011232,2]
[352570384,1739173840276,-886.37,0.00011232,2]
[352570385,1739173840286,-500.0,0.00011232,2]
[352570386,1739173840296,-500.0,0.00011232,2]
[352570387,1739173840310,-500.0,0.00011232,2]
[352570388,1739173840319,-500.0,0.00011232,2]
[352570389,1739173840329,-500.0,0.00011232,2]
[352570390,1739173840338,-500.0,0.00011232,2]
[352570391,1739173840347,-11555.29,0.00011232,2]
[352570392,1739173840356,-3567.19,0.00011232,2]
[352570393,1739173840365,-1981.93,0.00011232,2]
[352570394,1739173840375,-1014.01,0.00011232,2]
[352570395,1739173840384,-500.0,0.00011232,2]
[352570396,1739173840393,-500.0,0.00011232,2]
[352570397,1739173840407,-500.0,0.00011232,2]
[352570398,1739173840416,-158.26009058,0.00011338,2]
[352570399,1739173840425,-239.09,0.00011369,2]
[352570400,1739173840435,-500.0,0.00011369,2]
[352570401,1739173840444,-500.0,0.00011369,2]
[352570402,1739173840454,-500.0,0.00011369,2]
[352570403,1739173840463,-500.0,0.00011369,2]
[352570404,1739173840475,-277.8004232,0.00011369,2]
[352570405,1739173840484,-500.0,0.00011369,2]
[352570406,1739173840494,-500.0,0.00011369,2]
[352570407,1739173840505,-500.0,0.00011369,2]
[352570408,1739173840515,-500.0,0.00011369,2]
[352570409,1739173840524,-500.0,0.00011369,2]
[352570410,1739173840534,-500.0,0.00011369,2]
[352570411,1739173840543,-500.0,0.00011369,2]
[352570412,1739173840553,-500.0,0.00011369,2]
[352570413,1739173840564,-566.83,0.00011369,2]
[352570414,1739173840573,-500.0,0.00011369,2]
[352570415,1739173840582,-500.0,0.00011369,2]
[352570416,1739173840592,-598.1,0.00011369,2]
[352570417,1739173840601,-393.34371265,0.00011369,2]
[352570418,1739173840610,-500.0,0.00011369,2]
[352570419,1739173840619,-500.0,0.00011369,2]
[352570420,1739173840629,-500.0,0.00011369,2]
[352570421,1739173840638,-500.0,0.00011369,2]
[352570422,1739173840647,-636.99,0.00011369,2]
[352570423,1739173840657,-753.01,0.00011369,2]
[352570424,1739173840666,-500.0,0.00011369,2]
[352570425,1739173840676,-500.0,0.00011369,2]
[352570426,1739173840685,-500.0,0.00011369,2]
[352570427,1739173840694,-500.0,0.00011369,2]
[352570428,1739173840703,-500.0,0.00011369,2]
[352570429,1739173840712,-500.0,0.00011369,2]
[352570430,1739173840721,-500.0,0.00011369,2]
[352570431,1739173840731,-500.0,0.00011369,2]
[352570432,1739173840740,-582.61,0.00011369,2]
[352570433,1739173840749,-500.0,0.00011369,2]
[352570434,1739173840759,-168.52,0.00011369,2]
[352570435,1739173840768,-187.76231676,0.00011369,2]
[352570436,1739173840777,-345.91111322,0.00011369,2]
[352570437,1739173840786,-500.0,0.00011369,2]
[352570438,1739173840795,-500.0,0.00011369,2]
[352570439,1739173840805,-500.0,0.00011369,2]
[352570440,1739173840815,-500.0,0.00011369,2]
[352570441,1739173840824,-500.0,0.00011369,2]
[352570442,1739173840833,-1011.4,0.00011369,2]
[352570443,1739173840843,-500.0,0.00011369,2]
[352570444,1739173840851,-500.0,0.00011369,2]
[352570445,1739173840860,-500.0,0.00011369,2]
[352570446,1739173840869,-500.0,0.00011369,2]
[352570447,1739173840879,-500.0,0.00011369,2]
[352570448,1739173840888,-500.0,0.00011369,2]
[352570449,1739173840897,-500.0,0.00011369,2]
[352570450,1739173840906,-500.0,0.00011369,2]
[352570451,1739173840914,-500.0,0.00011369,2]
[352570452,1739173840923,-500.0,0.00011369,2]
[352570453,1739173840932,-500.0,0.00011369,2]
[352570454,1739173840941,-500.0,0.00011369,2]
[352570455,1739173840950,-500.0,0.00011369,2]
[352570456,1739173840959,-2327.36,0.00011369,2]
[352570457,1739173840969,-2167.03,0.00011369,2]
[352570458,1739173840978,-500.0,0.00011369,2]
[352570459,1739173840987,-1786.78,0.00011369,2]
[352570460,1739173840997,-500.0,0.00011369,2]
[352570461,1739173841005,-500.0,0.00011369,2]
[352570462,1739173841015,-1046.24,0.00011369,2]
[352570463,1739173841024,-331.98,0.00011369,2]
[352570464,1739173841034,-500.0,0.00011369,2]
[352570465,1739173841043,-500.0,0.00011369,2]
[352570466,1739173841052,-500.0,0.00011369,2]
[352570467,1739173841061,-737.05,0.00011369,2]
[352570468,1739173841171,-500.0,0.00011369,2]
[352570469,1739173841181,-699.77,0.00011369,2]
[352570470,1739173841191,-500.0,0.00011369,2]
[352570471,1739173841200,-889.57,0.00011369,2]
[352570472,1739173841210,-500.0,0.00011369,2]
[352570473,1739173841219,-500.0,0.00011369,2]
[352570474,1739173841228,-500.0,0.00011369,2]
[352570475,1739173841238,-24674.75,0.00011369,2]
[352570476,1739173841247,-1381.02,0.00011369,2]
[352570477,1739173841256,-500.0,0.00011369,2]
[352570478,1739173841265,-3775.41,0.00011369,2]
[352570479,1739173841275,-1106.43,0.00011369,2]
[352570480,1739173841284,-615.18,0.00011369,2]
[352570481,1739173841293,-500.0,0.00011369,2]
[352570482,1739173841303,-500.0,0.00011369,2]
[352570483,1739173841313,-1821.24,0.00011369,2]
[352570484,1739173841323,-586.55,0.00011369,2]
[352570485,1739173841332,-612.13,0.00011369,2]
[352570486,1739173841342,-500.0,0.00011369,2]
[352570487,1739173841351,-5292.78,0.00011369,2]
[352570488,1739173841361,-500.0,0.00011369,2]
[352570489,1739173841370,-500.0,0.00011369,2]
[352570490,1739173841379,-596.01524834,0.00011369,2]
[352570491,1739173841389,-500.0,0.00011369,2]
[352570492,1739173841403,-1628.02,0.00011369,2]
[352570493,1739173841412,-500.0,0.00011369,2]
[352570494,1739173841421,-500.0,0.00011369,2]
[352570495,1739173841430,-500.0,0.00011369,2]
[352570496,1739173841440,-500.0,0.00011369,2]
[352570497,1739173841450,-837.58,0.00011369,2]
[352570498,1739173841459,-762.41,0.00011369,2]
[352570499,1739173841468,-1904.32,0.00011369,2]
[352570500,1739173841479,-849.42,0.00011369,2]
[352570501,1739173841488,-500.0,0.00011369,2]
[352570502,1739173841497,-925.35,0.00011369,2]
[352570503,1739173841507,-878.8,0.00011369,2]
[352570504,1739173841516,-1541.79,0.00011369,2]
[352570505,1739173841525,-500.0,0.00011369,2]
[352570506,1739173841535,-500.0,0.00011369,2]
[352570507,1739173841544,-700.89,0.00011369,2]
[352570508,1739173841553,-500.0,0.00011369,2]
[352570509,1739173841563,-500.0,0.00011369,2]
[352570510,1739173841572,-500.0,0.00011369,2]
[352570511,1739173841582,-587.98,0.00011369,2]
[352570512,1739173841591,-500.0,0.00011369,2]
[352570513,1739173841601,-500.0,0.00011369,2]
[352570514,1739173841610,-1948.67,0.00011369,2]
[352570515,1739173841619,-886.37,0.00011369,2]
[352570516,1739173841628,-500.0,0.00011369,2]
[352570517,1739173841637,-500.0,0.00011369,2]
[352570518,1739173841646,-500.0,0.00011369,2]
[352570519,1739173841655,-11555.29,0.00011369,2]
[352570520,1739173841665,-3567.19,0.00011369,2]
[352570521,1739173841674,-1981.93,0.00011369,2]
[352570522,1739173841683,-1014.01,0.00011369,2]
[352570523,1739173841693,-500.0,0.00011369,2]
[352570524,1739173841702,-500.0,0.00011369,2]
[352570525,1739173841711,-500.0,0.00011369,2]
[352570526,1739173841720,-341.28,0.00011506,2]
[352570527,1739173841730,-500.0,0.00011506,2]
[352570528,1739173841739,-500.0,0.00011506,2]
[352570529,1739173841749,-509.65,0.00011506,2]
[352570530,1739173841758,-500.0,0.00011506,2]
[352570531,1739173841767,-500.0,0.00011506,2]
[352570532,1739173841777,-500.0,0.00011506,2]
[352570533,1739173841786,-500.0,0.00011506,2]
[352570534,1739173841795,-500.0,0.00011506,2]
[352570535,1739173841805,-500.0,0.00011506,2]
[352570536,1739173841816,-500.0,0.00011506,2]
[352570537,1739173841825,-566.83,0.00011506,2]
[352570538,1739173841835,-500.0,0.00011506,2]
[352570539,1739173841844,-500.0,0.00011506,2]
[352570540,1739173841854,-598.1,0.00011506,2]
[352570541,1739173841864,-500.0,0.00011506,2]
[352570542,1739173841873,-209.05984539,0.00011506,2]
[352570543,1739173841882,-500.0,0.00011506,2]
[352570544,1739173841892,-500.0,0.00011506,2]
[352570545,1739173841901,-636.99,0.00011506,2]
[352570546,1739173841911,-753.01,0.00011506,2]
[352570547,1739173841920,-500.0,0.00011506,2]
[352570548,1739173841929,-500.0,0.00011506,2]
[352570549,1739173841938,-500.0,0.00011506,2]
[352570550,1739173841948,-500.0,0.00011506,2]
[352570551,1739173841957,-500.0,0.00011506,2]
[352570552,1739173841966,-500.0,0.00011506,2]
[352570553,1739173841975,-500.0,0.00011506,2]
[352570554,1739173841985,-500.0,0.00011506,2]
[352570555,1739173841994,-582.61,0.00011506,2]
[352570556,1739173842003,-500.0,0.00011506,2]
[352570557,1739173842012,-500.0,0.00011506,2]
[352570558,1739173842021,-500.0,0.00011506,2]
[352570559,1739173842030,-500.0,0.00011506,2]
[352570560,1739173842040,-500.0,0.00011506,2]
[352570561,1739173842049,-1011.4,0.00011506,2]
[352570562,1739173842058,-500.0,0.00011506,2]
[352570563,1739173842069,-500.0,0.00011506,2]
[352570564,1739173842078,-500.0,0.00011506,2]
[352570565,1739173842087,-500.0,0.00011506,2]
[352570566,1739173842096,-500.0,0.00011506,2]
[352570567,1739173842105,-500.0,0.00011506,2]
[352570568,1739173842114,-500.0,0.00011506,2]
[352570569,1739173842123,-500.0,0.00011506,2]
[352570570,1739173842132,-500.0,0.00011506,2]
[352570571,1739173842142,-500.0,0.00011506,2]
[352570572,1739173842151,-2327.36,0.00011506,2]
[352570573,1739173842160,-2167.03,0.00011506,2]
[352570574,1739173842169,-500.0,0.00011506,2]
[352570575,1739173842178,-1786.78,0.00011506,2]
[352570576,1739173842187,-500.0,0.00011506,2]
[352570577,1739173842196,-500.0,0.00011506,2]
[352570578,1739173842206,-1046.24,0.00011506,2]
[352570579,1739173842215,-500.0,0.00011506,2]
[352570580,1739173842225,-500.0,0.00011506,2]
[352570581,1739173842234,-500.0,0.00011506,2]
[352570582,1739173842243,-737.05,0.00011506,2]
[352570583,1739173842252,-500.0,0.00011506,2]
[352570584,1739173842262,-699.77,0.00011506,2]